fUSD/lending_fUSD_20240720
["ID","MTS","AMOUNT","RATE_DAILY","PERIOD"]
[332719177,1721473934007,-954.2,0.0003452,14]
[332719178,1721473934017,-3423.76,0.0003452,14]
[332719179,1721473934026,-3739.53,0.0003452,14]
[332719180,1721473934035,-292.18951418,0.0003452,14]
[332719181,1721473934044,-1454.72,0.0003452,14]
[332719182,1721473934054,-4221.65,0.0003452,14]
[332719183,1721473934063,-562.22,0.0003452,14]
[332719184,1721473934073,-1866.63,0.0003452,14]
[332719185,1721473934082,-1847.67,0.0003452,14]
[332719186,1721473934091,-717.61,0.0003452,14]
[332719187,1721473934101,-500.0,0.0003452,14]
[332719188,1721473934110,-1568.4,0.0003452,14]
[332719189,1721473934121,-2361.41,0.0003452,14]
[332719190,1721473934132,-533.76,0.0003452,14]
[332719191,1721473934144,-2086.21,0.0003452,14]
[332719192,1721473934154,-531.19,0.0003452,14]
[332719193,1721473934163,-500.0,0.0003452,14]
[332719194,1721473934250,-500.0,0.0003452,14]
[332719195,1721473934264,-7679.89,0.0003452,14]
[332719196,1721473934273,-5599.81,0.0003452,14]
[332719197,1721473934283,-500.0,0.0003452,14]
[332719198,1721473934292,-678.77,0.0003452,14]
[332719199,1721473934301,-2741.18,0.0003452,14]
[332719200,1721473934311,-519.95539718,0.0003452,14]
[332719201,1721473934320,-150.0,0.0003452,14]
[332719202,1721473934329,-500.0,0.0003452,14]
[332719203,1721473934339,-1759.46,0.0003452,14]
[332719204,1721473934348,-3111.41,0.0003452,14]
[332719205,1721473934357,-3706.51,0.0003452,14]
[332719206,1721473934367,-306.47524567,0.0003452,14]
[332719207,1721473934377,-500.0,0.0003452,14]
[332719208,1721473934386,-218.69227543,0.0003452,14]
[332719209,1721473934397,-1042.97,0.0003452,14]
[332719210,1721473934407,-2100.36,0.0003452,14]
[332719211,1721473934418,-500.0,0.0003452,14]
[332719212,1721473934429,-500.0,0.0003452,14]
[332719213,1721473934439,-521.11,0.0003452,14]
[332719214,1721473934449,-211.0,0.0003452,30]
[332719215,1721473934462,-1119.58,0.0003452,14]
[332719216,1721473934472,-1054.38,0.0003452,14]
[332719217,1721473934482,-2778.17,0.0003452,14]
[332719218,1721473934491,-500.0,0.0003452,14]
[332719219,1721473934501,-1580.83,0.0003452,14]
[332719220,1721473934512,-500.0,0.0003452,14]
[332719221,1721473934521,-2896.14,0.0003452,14]
[332719222,1721473934531,-5371.08,0.0003452,14]
[332719223,1721473934542,-531.09,0.0003452,14]
[332719224,1721473934552,-1540.68,0.0003452,14]
[332719225,1721473934562,-500.0,0.0003452,14]
[332719226,1721473934572,-2005.82,0.0003452,14]
[332719227,1721473934583,-862.76,0.0003452,14]
[332719228,1721473934592,-840.3,0.0003452,14]
[332719229,1721473934602,-562.41,0.0003452,14]
[332719230,1721473934611,-500.0,0.0003452,14]
[332719231,1721473934621,-1249.2,0.0003452,14]
[332719232,1721473934631,-634.33,0.0003452,14]
[332719233,1721473934640,-500.0,0.0003452,14]
[332719234,1721473934650,-500.0,0.0003452,14]
[332719235,1721473934659,-500.0,0.0003452,14]
[332719236,1721473934669,-1570.16,0.0003452,14]
[332719237,1721473934679,-500.0,0.0003452,14]
[332719238,1721473934689,-1581.58,0.0003452,14]
[332719239,1721473934699,-719.82,0.0003452,14]
[332719240,1721473934708,-500.0,0.0003452,14]
[332719241,1721473934718,-500.0,0.0003452,14]
[332719242,1721473934729,-500.0,0.0003452,14]
[332719243,1721473934739,-1146.91,0.0003452,14]
[332719244,1721473934749,-500.0,0.0003452,14]
[332719245,1721473934758,-3329.02,0.0003452,14]
[332719246,1721473934768,-853.86,0.0003452,14]
[332719247,1721473934778,-2264.07,0.0003452,14]
[332719248,1721473934791,-500.0,0.0003452,14]
[332719249,1721473934801,-2219.13,0.0003452,14]
[332719250,1721473934811,-500.0,0.0003452,14]
[332719251,1721473934821,-1120.96,0.0003452,14]
[332719252,1721473934831,-1902.93,0.0003452,14]
[332719253,1721473934841,-500.0,0.0003452,14]
[332719254,1721473934851,-868.34,0.0003452,14]
[332719255,1721473934861,-705.07,0.0003452,14]
[332719256,1721473934871,-500.0,0.0003452,14]
[332719257,1721473934880,-3016.63,0.0003452,14]
[332719258,1721473934890,-500.0,0.0003452,14]
[332719259,1721473934900,-558.53726227,0.0003452,14]
[332719260,1721473934910,-500.0,0.0003452,14]
[332719261,1721473934920,-500.0,0.0003452,14]
[332719262,1721473934931,-500.0,0.0003452,14]
[332719263,1721473934941,-667.93,0.0003452,14]
[332719264,1721473934951,-1526.65,0.0003452,14]
[332719265,1721473934960,-1768.29,0.0003452,14]
[332719266,1721473934970,-500.0,0.0003452,14]
[332719267,1721473934979,-2466.45,0.0003452,14]
[332719268,1721473934989,-500.0,0.0003452,14]
[332719269,1721473935000,-1656.41,0.0003452,14]
[332719270,1721473935009,-500.0,0.0003452,14]
[332719271,1721473935019,-1167.22,0.0003452,14]
[332719272,1721473935029,-2366.03,0.0003452,14]
[332719273,1721473935039,-500.0,0.0003452,14]
[332719274,1721473935050,-503.44438447,0.0003452,14]
[332719275,1721473935061,-578.52,0.0003452,14]
[332719276,1721473935072,-1218.57,0.0003452,14]
[332719277,1721473935082,-1550.98,0.0003452,14]
[332719278,1721473935092,-1548.59,0.0003452,14]
[332719279,1721473935101,-1528.37,0.0003452,14]
[332719280,1721473935111,-500.0,0.0003452,14]
[332719281,1721473935121,-3673.09,0.0003452,14]
[332719282,1721473935132,-500.0,0.0003452,14]
[332719283,1721473935141,-652.12,0.0003452,14]
[332719284,1721473935152,-500.0,0.0003452,14]
[332719285,1721473935162,-2277.43,0.0003452,14]
[332719286,1721473935171,-1666.71,0.0003452,14]
[332719287,1721473935182,-599.55,0.0003452,14]
[332719288,1721473935192,-6734.78,0.0003452,14]
[332719289,1721473935202,-314.56482882,0.0003452,14]
[332719290,1721473935213,-2116.33,0.0003452,14]
[332719291,1721473935223,-1260.65,0.0003452,14]
[332719292,1721473935233,-500.0,0.0003452,14]
[332719293,1721473935243,-2036.66,0.0003452,14]
[332719294,1721473935254,-1126.85,0.0003452,14]
[332719295,1721473935265,-600.0,0.0003452,2]
[332719296,1721473935275,-500.0,0.0003452,14]
[332719297,1721473935284,-7985.23,0.0003452,14]
[332719298,1721473935294,-452.91539641,0.0003452,14]
[332719299,1721473935304,-500.0,0.0003452,14]
[332719300,1721473935313,-500.0,0.0003452,14]
[332719301,1721473935325,-500.0,0.0003452,14]
[332719302,1721473935334,-12096.44,0.0003452,14]
[332719303,1721473935344,-4375.25,0.0003452,14]
[332719304,1721473935354,-240.01091068,0.0003452,14]
[332719305,1721473935364,-3186.86,0.0003452,14]
[332719306,1721473935374,-1721.7,0.0003452,14]
[332719307,1721473935384,-863.68,0.0003452,14]
[332719308,1721473935393,-1788.12,0.0003452,14]
[332719309,1721473935403,-566.34,0.0003452,14]
[332719310,1721473935413,-3156.35,0.0003452,14]
[332719311,1721473935422,-1476.06,0.0003452,14]
[332719312,1721473935433,-500.0,0.0003452,14]
[332719313,1721473935442,-1444.17,0.0003452,14]
[332719314,1721473935452,-869.37,0.0003452,14]
[332719315,1721473935461,-500.0,0.0003452,14]
[332719316,1721473935471,-2375.96,0.0003452,14]
[332719317,1721473935481,-1947.99,0.0003452,14]
[332719318,1721473935491,-500.0,0.0003452,14]
[332719319,1721473935500,-500.0,0.0003452,14]
[332719320,1721473935510,-500.0,0.0003452,14]
[332719321,1721473935520,-1524.46,0.0003452,14]
[332719322,1721473935530,-1888.96,0.0003452,14]
[332719323,1721473935539,-2153.9,0.0003452,14]
[332719324,1721473935549,-2486.1,0.0003452,14]
[332719325,1721473935559,-500.0,0.0003452,14]
[332719326,1721473935570,-1505.49,0.0003452,14]
[332719327,1721473935580,-1005.44,0.0003452,14]
[332719328,1721473935590,-500.0,0.0003452,14]
[332719329,1721473935600,-500.0,0.0003452,14]
[332719330,1721473935610,-500.0,0.0003452,14]
[332719331,1721473935620,-1923.6,0.0003452,14]
[332719332,1721473935630,-766.54,0.0003452,14]
[332719333,1721473935640,-854.35,0.0003452,14]
[332719334,1721473935650,-500.0,0.0003452,14]
[332719335,1721473935660,-1355.38,0.0003452,14]
[332719336,1721473935670,-1163.9,0.0003452,14]
[332719337,1721473935681,-1583.51,0.0003452,14]
[332719338,1721473935691,-3298.21,0.0003452,14]
[332719339,1721473935702,-519.07,0.0003452,14]
[332719340,1721473935711,-1701.96,0.0003452,14]
[332719341,1721473935722,-500.0,0.0003452,14]
[332719342,1721473935732,-2511.74,0.0003452,14]
[332719343,1721473935742,-691.57,0.0003452,14]
[332719344,1721473935752,-467.53054708,0.0003452,14]
[332719345,1721473935762,-789.5,0.0003452,14]
[332719346,1721473936031,-1632.49,0.0003452,14]
[332719347,1721473936043,-4281.45,0.0003452,14]
[332719348,1721473936053,-507.25901965,0.0003452,14]
[332719349,1721473936063,-1379.78,0.0003452,14]
[332719350,1721473936073,-1742.94,0.0003452,14]
[332719351,1721473936083,-1369.89,0.0003452,14]
[332719352,1721473936092,-261.0867924,0.0003452,14]
[332719353,1721473936102,-1754.36,0.0003452,14]
[332719354,1721473936113,-1621.26,0.0003452,14]
[332719355,1721473936123,-1484.56,0.0003452,14]
[332719356,1721473936134,-856.79,0.0003452,14]
[332719357,1721473936144,-500.0,0.0003452,14]
[332719358,1721473936154,-1607.71,0.0003452,14]
[332719359,1721473936164,-2185.27,0.0003452,14]
[332719360,1721473936174,-590.54,0.0003452,14]
[332719361,1721473936184,-719.08,0.0003452,14]
[332719362,1721473936194,-5863.23,0.0003452,14]
[332719363,1721473936204,-500.0,0.0003452,14]
[332719364,1721473936214,-500.0,0.0003452,14]
[332719365,1721473936225,-3835.27,0.0003452,14]
[332719366,1721473936236,-2327.81,0.0003452,14]
[332719367,1721473936246,-3385.14,0.0003452,14]
[332719368,1721473936256,-1444.8,0.0003452,14]
[332719369,1721473936266,-500.0,0.0003452,14]
[332719370,1721473936276,-195.58606565,0.0003452,2]
[332719371,1721473936286,-679.79,0.0003452,14]
[332719372,1721473936295,-1484.07,0.0003452,14]
[332719373,1721473936306,-1229.52,0.0003452,14]
[332719374,1721473936316,-716.12,0.0003452,14]
[332719375,1721473936326,-500.0,0.0003452,14]
[332719376,1721473936336,-500.0,0.0003452,14]
[332719377,1721473936346,-803.16,0.0003452,14]
[332719378,1721473936355,-500.0,0.0003452,14]
[332719379,1721473936366,-1585.29,0.0003452,14]
[332719380,1721473936376,-2401.57,0.0003452,14]
[332719381,1721473936385,-1125.98,0.0003452,14]
[332719382,1721473936394,-1460.64,0.0003452,14]
[332719383,1721473936405,-500.0,0.0003452,14]
[332719384,1721473936415,-1431.69,0.0003452,14]
[332719385,1721473936425,-1121.56,0.0003452,14]
[332719386,1721473936435,-500.0,0.0003452,14]
[332719387,1721473936445,-1827.29,0.0003452,14]
[332719388,1721473936455,-500.0,0.0003452,14]
[332719389,1721473936465,-1089.7,0.0003452,14]
[332719390,1721473936475,-500.0,0.0003452,14]
[332719391,1721473936484,-2971.22,0.0003452,14]
[332719392,1721473936494,-500.0,0.0003452,14]
[332719393,1721473936503,-816.76,0.0003452,14]
[332719394,1721473936513,-517.26,0.0003452,14]
[332719395,1721473936523,-500.0,0.0003452,14]
[332719396,1721473936532,-591.61,0.0003452,14]
[332719397,1721473936542,-646.96,0.0003452,2]
[332719398,1721473936553,-472.42761139,0.0003452,14]
[332719399,1721473936563,-793.45,0.0003452,14]
[332719400,1721473936573,-1182.38,0.0003452,14]
[332719401,1721473936583,-2723.45,0.0003452,14]
[332719402,1721473936593,-500.0,0.0003452,14]
[332719403,1721473936604,-531.66,0.0003452,14]
[332719404,1721473936614,-1127.59,0.0003452,14]
[332719405,1721473936624,-8394.1,0.0003452,14]
[332719406,1721473936634,-500.0,0.0003452,14]
[332719407,1721473936644,-931.4,0.0003452,14]
[332719408,1721473936653,-500.0,0.0003452,14]
[332719409,1721473936663,-3205.98,0.0003452,14]
[332719410,1721473936673,-515.86,0.0003452,14]
[332719411,1721473936684,-500.0,0.0003452,14]
[332719412,1721473936694,-925.89,0.0003452,14]
[332719413,1721473936704,-1969.06,0.0003452,14]
[332719414,1721473936714,-527.17,0.0003452,14]
[332719415,1721473936724,-952.34,0.0003452,14]
[332719416,1721473936734,-443.13342699,0.0003452,14]
[332719417,1721473936744,-977.07,0.0003452,14]
[332719418,1721473936753,-1520.53,0.0003452,14]
[332719419,1721473936763,-669.76,0.0003452,14]
[332719420,1721473936773,-500.0,0.0003452,14]
[332719421,1721473936784,-500.0,0.0003452,14]
[332719422,1721473936799,-805.0,0.0003452,14]
[332719423,1721473936808,-10861.79,0.0003452,14]
[332719424,1721473936818,-500.0,0.0003452,14]
[332719425,1721473936828,-2329.04,0.0003452,14]
[332719426,1721473936838,-1656.75,0.0003452,14]
[332719427,1721473936848,-500.0,0.0003452,14]
[332719428,1721473936857,-911.27,0.0003452,14]
[332719429,1721473936867,-500.0,0.0003452,2]
[332719430,1721473936877,-500.0,0.0003452,2]
[332719431,1721473936887,-500.0,0.0003452,2]
[332719432,1721473936896,-500.0,0.0003452,2]
[332719433,1721473936906,-500.0,0.0003452,2]
[332719434,1721473936915,-506.21952764,0.0003452,2]
[332719435,1721473936925,-251.83057447,0.00034525,7]
[332719436,1721473936936,-150.0,0.00034548,10]
[332719437,1721473936947,-600.0,0.0003456,2]
[332719438,1721473936956,-151.29372047,0.0003456,7]
[332719439,1721473936966,-251.83057447,0.0003456,7]
[332719440,1721473936975,-286.13362106,0.0003456,7]
[332719441,1721473936985,-150.24003563,0.0003456,7]
[332719442,1721473936995,-150.16461199,0.0003456,7]
[332719443,1721473937004,-272.1166724,0.0003456,7]
[332719444,1721473937014,-150.31207182,0.0003456,7]
[332719445,1721473937023,-150.51458808,0.0003456,7]
[332719446,1721473937033,-150.26811697,0.0003456,7]
[332719447,1721473937042,-153.46459575,0.0003456,7]
[332719448,1721473937051,-150.67068341,0.0003456,7]
[332719449,1721473937061,-150.16300482,0.0003456,7]
[332719450,1721473937070,-925.0,0.0003465,2]
[332719451,1721473937080,-729.12,0.00034657,14]
[332719452,1721473937090,-1341.92,0.00034657,14]
[332719453,1721473937099,-38491.95662944,0.00034699,30]
[332719454,1721473937110,-70000.0,0.00034699,4]
[332719455,1721473937120,-711.84429346,0.00034699,4]
[332719456,1721473937129,-156.0,0.000347,23]
[332719457,1721473937139,-500.0,0.00034775,5]
[332719458,1721473937149,-501.85,0.00034778,2]
[332719459,1721473937158,-479.73029192,0.00034779,5]
[332719460,1721473937168,-155.0,0.00034783,4]
[332719461,1721473937178,-155.0,0.00034783,4]
[332719462,1721473937188,-151.0,0.00034794,7]
[332719463,1721473937197,-151.0,0.00034794,7]
[332719464,1721473937207,-151.0,0.00034794,7]
[332719465,1721473937216,-151.0,0.00034794,7]
[332719466,1721473937226,-151.0,0.00034794,7]
[332719467,1721473937236,-151.0,0.00034794,7]
[332719468,1721473937245,-151.0,0.00034794,7]
[332719469,1721473937254,-500.0,0.00034794,14]
[332719470,1721473937264,-2064.08,0.00034794,14]
[332719471,1721473937273,-2064.08,0.00034794,14]
[332719472,1721473937282,-2064.08,0.00034794,14]
[332719473,1721473937292,-2064.08,0.00034794,14]
[332719474,1721473937301,-500.0,0.00034794,14]
[332719475,1721473937310,-2064.08,0.00034794,14]
[332719476,1721473937321,-500.0,0.00034794,14]
[332719477,1721473937330,-2064.08,0.00034794,14]
[332719478,1721473937340,-2064.08,0.00034794,14]
[332719479,1721473937349,-2064.08,0.00034794,14]
[332719480,1721473937358,-2064.08,0.00034794,14]
[332719481,1721473937368,-2064.08,0.00034794,14]
[332719482,1721473937378,-2064.08,0.00034794,14]
[332719483,1721473937387,-2064.08,0.00034794,14]
[332719484,1721473937396,-2064.08,0.00034794,14]
[332719485,1721473937406,-2064.08,0.00034794,14]
[332719486,1721473937415,-2064.08,0.00034794,14]
[332719487,1721473937424,-2064.08,0.00034794,14]
[332719488,1721473937434,-2064.08,0.00034794,14]
[332719489,1721473937443,-2064.08,0.00034794,14]
[332719490,1721473937453,-2064.08,0.00034794,14]
[332719491,1721473937463,-2064.08,0.00034794,14]
[332719492,1721473937472,-2064.08,0.00034794,14]
[332719493,1721473937483,-2064.08,0.00034794,14]
[332719494,1721473937492,-2064.08,0.00034794,14]
[332719495,1721473937502,-2064.11200098,0.00034794,14]
[332719496,1721473937511,-729.12,0.00034794,14]
[332719497,1721473937521,-1341.92,0.00034794,14]
[332719498,1721473937531,-500.0,0.00034794,14]
[332719499,1721473937540,-500.0,0.00034794,14]
[332719500,1721473937550,-500.0,0.00034794,14]
[332719501,1721473937559,-370.9172784,0.00034794,14]
[332719502,1721473937569,-500.0,0.00034794,14]
[332719503,1721473937578,-637.22,0.00034794,14]
[332719504,1721473937588,-500.0,0.00034794,14]
[332719505,1721473937598,-500.0,0.00034794,14]
[332719506,1721473937607,-665.42,0.00034794,14]
[332719507,1721473937617,-500.0,0.00034794,14]
[332719508,1721473937627,-500.0,0.00034794,14]
[332719509,1721473937636,-500.0,0.00034794,14]
[332719510,1721473937646,-219.23941294,0.00034794,14]
[332719511,1721473937655,-500.0,0.00034794,14]
[332719512,1721473937665,-785.16,0.00034794,14]
[332719513,1721473937675,-500.0,0.00034794,14]
[332719514,1721473937687,-1268.79,0.00034794,14]
[332719515,1721473937696,-500.0,0.00034794,14]
[332719516,1721473937707,-500.0,0.00034794,14]
[332719517,1721473937716,-287.51415215,0.00034794,14]
[332719518,1721473937726,-657.46,0.00034794,14]
[332719519,1721473937735,-500.0,0.00034794,14]
[332719520,1721473937745,-500.0,0.00034794,14]
[332719521,1721473937754,-200.0,0.00034794,14]
[332719522,1721473937764,-642.02909883,0.00034794,14]
[332719523,1721473937774,-656.33,0.00034794,14]
[332719524,1721473937784,-500.0,0.00034794,14]
[332719525,1721473937793,-740.41,0.00034794,14]
[332719526,1721473937803,-605.89,0.00034794,14]
[332719527,1721473937812,-500.0,0.00034794,14]
[332719528,1721473937823,-500.0,0.00034794,14]
[332719529,1721473937832,-869.42,0.00034794,14]
[332719530,1721473937842,-613.28,0.00034794,14]
[332719531,1721473937851,-500.0,0.00034794,14]
[332719532,1721473937860,-500.0,0.00034794,14]
[332719533,1721473937870,-692.13,0.00034794,14]
[332719534,1721473937880,-500.0,0.00034794,14]
[332719535,1721473937889,-500.0,0.00034794,14]
[332719536,1721473937899,-500.0,0.00034794,14]
[332719537,1721473937908,-506.09,0.00034794,14]
[332719538,1721473937918,-692.91,0.00034794,14]
[332719539,1721473937928,-660.88,0.00034794,14]
[332719540,1721473937939,-626.34,0.00034794,14]
[332719541,1721473937949,-562.29,0.00034794,14]
[332719542,1721473937959,-500.0,0.00034794,14]
[332719543,1721473937968,-500.0,0.00034794,14]
[332719544,1721473937978,-330.68,0.00034794,14]
[332719545,1721473937987,-500.0,0.00034794,14]
[332719546,1721473937997,-500.0,0.00034794,14]
[332719547,1721473938006,-500.0,0.00034794,14]
[332719548,1721473938016,-500.0,0.00034794,14]
[332719549,1721473938025,-649.1,0.00034794,14]
[332719550,1721473938035,-525.64,0.00034794,14]
[332719551,1721473938044,-337.5504998,0.00034794,14]
[332719552,1721473938054,-500.0,0.00034794,14]
[332719553,1721473938067,-549.87,0.00034794,14]
[332719554,1721473938077,-500.0,0.00034794,14]
[332719555,1721473938087,-500.0,0.00034794,14]
[332719556,1721473938097,-500.0,0.00034794,14]
[332719557,1721473938106,-500.0,0.00034794,14]
[332719558,1721473938116,-763.4,0.00034794,14]
[332719559,1721473938126,-500.0,0.00034794,14]
[332719560,1721473938136,-500.0,0.00034794,14]
[332719561,1721473938146,-500.0,0.00034794,14]
[332719562,1721473938155,-500.0,0.00034794,14]
[332719563,1721473938165,-500.0,0.00034794,14]
[332719564,1721473938174,-500.0,0.00034794,14]
[332719565,1721473938185,-500.0,0.00034794,14]
[332719566,1721473938195,-1119.59,0.00034794,14]
[332719567,1721473938206,-500.0,0.00034794,14]
[332719568,1721473938216,-500.0,0.00034794,14]
[332719569,1721473938225,-500.0,0.00034794,14]
[332719570,1721473938235,-500.0,0.00034794,14]
[332719571,1721473938244,-500.0,0.00034794,14]
[332719572,1721473938253,-545.99,0.00034794,14]
[332719573,1721473938263,-500.0,0.00034794,14]
[332719574,1721473938272,-500.0,0.00034794,14]
[332719575,1721473938282,-649.25,0.00034794,14]
[332719576,1721473938292,-500.0,0.00034794,14]
[332719577,1721473938301,-500.0,0.00034794,14]
[332719578,1721473938311,-500.0,0.00034794,14]
[332719579,1721473938320,-500.0,0.00034794,14]
[332719580,1721473938331,-500.0,0.00034794,14]
[332719581,1721473938340,-500.0,0.00034794,14]
[332719582,1721473938350,-500.0,0.00034794,14]
[332719583,1721473938362,-1601.88,0.00034794,14]
[332719584,1721473938372,-500.0,0.00034794,14]
[332719585,1721473938381,-500.0,0.00034794,14]
[332719586,1721473938391,-500.0,0.00034794,14]
[332719587,1721473938400,-500.0,0.00034794,14]
[332719588,1721473938410,-500.0,0.00034794,14]
[332719589,1721473938419,-500.0,0.00034794,14]
[332719590,1721473938580,-342.55783542,0.00034794,14]
[332719591,1721473938589,-500.0,0.00034794,14]
[332719592,1721473938599,-500.0,0.00034794,14]
[332719593,1721473938608,-526.06,0.00034794,14]
[332719594,1721473938618,-500.0,0.00034794,14]
[332719595,1721473938627,-500.0,0.00034794,14]
[332719596,1721473938637,-558.4,0.00034794,14]
[332719597,1721473938646,-500.0,0.00034794,14]
[332719598,1721473938655,-500.0,0.00034794,14]
[332719599,1721473938665,-500.0,0.00034794,14]
[332719600,1721473938675,-500.0,0.00034794,14]
[332719601,1721473938686,-500.0,0.00034794,14]
[332719602,1721473938695,-500.0,0.00034794,14]
[332719603,1721473938704,-500.0,0.00034794,14]
[332719604,1721473938713,-658.83,0.00034794,14]
[332719605,1721473938723,-500.0,0.00034794,14]
[332719606,1721473938733,-500.0,0.00034794,14]
[332719607,1721473938742,-500.0,0.00034794,14]
[332719608,1721473938751,-500.0,0.00034794,14]
[332719609,1721473938761,-2195.07,0.00034794,14]
[332719610,1721473938770,-500.14,0.00034794,14]
[332719611,1721473938779,-500.0,0.00034794,14]
[332719612,1721473938791,-500.0,0.00034794,14]
[332719613,1721473938801,-553.59,0.00034794,14]
[332719614,1721473938811,-500.0,0.00034794,14]
[332719615,1721473938820,-500.0,0.00034794,14]
[332719616,1721473938829,-500.0,0.00034794,14]
[332719617,1721473938839,-972.4,0.00034794,14]
[332719618,1721473938848,-500.0,0.00034794,14]
[332719619,1721473938857,-500.0,0.00034794,14]
[332719620,1721473938866,-1241.69,0.00034794,14]
[332719621,1721473938876,-782.5,0.00034794,14]
[332719622,1721473938885,-819.47,0.00034794,14]
[332719623,1721473938895,-500.0,0.00034794,14]
[332719624,1721473938904,-500.0,0.00034794,14]
[332719625,1721473938913,-500.0,0.00034794,14]
[332719626,1721473938923,-572.65379428,0.00034794,14]
[332719627,1721473938932,-1002.9,0.00034794,14]
[332719628,1721473938941,-776.99,0.00034794,14]
[332719629,1721473938951,-500.0,0.00034794,14]
[332719630,1721473938960,-748.98,0.00034794,14]
[332719631,1721473938969,-526.05,0.00034794,14]
[332719632,1721473938978,-500.0,0.00034794,14]
[332719633,1721473938988,-500.0,0.00034794,14]
[332719634,1721473938997,-500.0,0.00034794,14]
[332719635,1721473939006,-690.54,0.00034794,14]
[332719636,1721473939015,-500.0,0.00034794,14]
[332719637,1721473939025,-500.0,0.00034794,14]
[332719638,1721473939034,-500.0,0.00034794,14]
[332719639,1721473939045,-505.97150971,0.00034794,14]
[332719640,1721473939054,-721.82,0.00034794,14]
[332719641,1721473939064,-500.0,0.00034794,14]
[332719642,1721473939073,-584.5,0.00034794,14]
[332719643,1721473939082,-500.0,0.00034794,14]
[332719644,1721473939091,-186.82110875,0.00034794,14]
[332719645,1721473939100,-504.17266272,0.00034794,14]
[332719646,1721473939110,-1091.35,0.00034794,14]
[332719647,1721473939120,-759.12,0.00034794,14]
[332719648,1721473939130,-500.0,0.00034794,14]
[332719649,1721473939139,-500.0,0.00034794,14]
[332719650,1721473939150,-738.7,0.00034794,14]
[332719651,1721473939159,-500.0,0.00034794,14]
[332719652,1721473939168,-1236.72,0.00034794,14]
[332719653,1721473939177,-500.0,0.00034794,14]
[332719654,1721473939188,-1632.34,0.00034794,14]
[332719655,1721473939198,-500.0,0.00034794,14]
[332719656,1721473939207,-500.0,0.00034794,14]
[332719657,1721473939216,-500.0,0.00034794,14]
[332719658,1721473939227,-500.0,0.00034794,14]
[332719659,1721473939237,-480.78914021,0.00034794,14]
[332719660,1721473939247,-500.0,0.00034794,14]
[332719661,1721473939256,-1335.93,0.00034794,14]
[332719662,1721473939265,-500.0,0.00034794,14]
[332719663,1721473939275,-347.35118111,0.00034794,14]
[332719664,1721473939285,-857.36,0.00034794,14]
[332719665,1721473939294,-500.0,0.00034794,14]
[332719666,1721473939304,-500.0,0.00034794,14]
[332719667,1721473939313,-500.0,0.00034794,14]
[332719668,1721473939322,-527.61255329,0.00034794,14]
[332719669,1721473939332,-2213.83,0.00034794,14]
[332719670,1721473939341,-500.0,0.00034794,14]
[332719671,1721473939350,-500.0,0.00034794,14]
[332719672,1721473939359,-500.0,0.00034794,14]
[332719673,1721473939368,-988.37,0.00034794,14]
[332719674,1721473939378,-500.0,0.00034794,14]
[332719675,1721473939387,-500.0,0.00034794,14]
[332719676,1721473939396,-500.0,0.00034794,14]